[Event "Chelyabinskiy variant-A 2021"]
[Site "Chelyabinsk"]
[Date "2021.03.28"]
[Round "6.8"]
[White "Suleymenov, Alisher"]
[Black "Utegaliyev, Azamat"]
[Result "1/2-1/2"]
[ECO "E20"]
[WhiteElo "2440"]
[BlackElo "2507"]
[Annotator "ChessBase"]
[PlyCount "111"]
[EventDate "2021.03.23"]
[EventType "swiss"]
[EventCountry "RUS"]
[SourceTitle "playchess.com"]
[Source "ChessBase"]
[SourceQuality "1"]
[TimeControl "5400+30"]

1. d4 {[%emt 0:00:00]} Nf6 {[%emt 0:08:03]} 2. c4 {[%emt 0:00:00]} e6 {[%emt 0:00:05]} 3. Nc3 {[%emt 0:00:17]} Bb4 {[%emt 0:00:28]} 4. f3 {[%emt 0:00:48]} d5 {[%emt 0:00:39]} 5. a3 {[%emt 0:00:05]} Bxc3+ {[%emt 0:00:43]} 6. bxc3 {[%emt 0:00:06]} c6 {[%emt 0:00:14]} 7. e4 {[%emt 0:07:10]} dxe4 {[%emt 0:02:34]} 8. fxe4 {[%emt 0:00:03]} e5 {[%emt 0:00:08]} 9. Nf3 {[%emt 0:00:09]} Qa5 {[%emt 0:02:10]} 10. Bd2 {[%emt 0:04:41]} Nxe4 {[%emt 0:00:48]} 11. Bd3 {[%emt 0:01:24]} Nxd2 {[%emt 0:03:37]} 12. Qxd2 {[%emt 0:00:04]} exd4 {[%emt 0:36:52]} 13. cxd4 {[%emt 0:00:05]} Qxd2+ {[%emt 0:01:10]} 14. Kxd2 {[%emt 0:00:03]} O-O {[%emt 0:07:43]} 15. Rhe1 {[%emt 0:00:03]} Bd7 {[%emt 0:00:04]} 16. c5 {[%emt 0:11:38]} b6 {[%emt 0:04:35]} 17. Bc4 {[%emt 0:09:28]} Be6 {[%emt 0:07:10]} 18. Bxe6 {[%emt 0:16:10]} fxe6 {[%emt 0:00:03]} 19. Rxe6 {[%emt 0:01:06]} bxc5 {[%emt 0:06:20]} 20. Ne5 {[%emt 0:07:49]} a5 {[%emt 0:10:16]} 21. Rb1 {[%emt 0:09:30]} Ra7 {[%emt 0:00:44]} 22. dxc5 {[%emt 0:00:53]} Rc7 {[%emt 0:00:39]} 23. Kc3 {[%emt 0:08:18]} Na6 {[%emt 0:00:56]} 24. Nd3 {[%emt 0:00:05]} Rd8 {[%emt 0:02:44]} 25. Rd6 {[%emt 0:03:54]} Re8 {[%emt 0:00:01]} 26. Kd4 {[%emt 0:07:41]} Nb8 {[%emt 0:00:13]} 27. Ne5 {[%emt 0:01:20]} h6 {[%emt 0:01:33]} 28. h4 {[%emt 0:01:53]} h5 {[%emt 0:02:17]} 29. g3 {[%emt 0:02:37]} Rec8 {[%emt 0:00:15]} 30. Rf1 {[%emt 0:02:02]} Rb7 {[%emt 0:00:27]} 31. Rf5 {[%emt 0:02:20]} Rb3 {[%emt 0:00:14]} 32. g4 {[%emt 0:03:01]} hxg4 {[%emt 0:00:50]} 33. Rf7 {[%emt 0:00:01]} Rf3 {[%emt 0:00:43]} 34. Rb7 {[%emt 0:00:56]} Rf4+ {[%emt 0:00:30]} 35. Ke3 {[%emt 0:00:21]} Rf5 {[%emt 0:00:33]} 36. Ke4 {[%emt 0:00:15]} Rf1 {[%emt 0:00:50]} 37. Rg6 {[%emt 0:01:11]} Re1+ {[%emt 0:00:02]} 38. Kf4 {[%emt 0:00:47]} Rf8+ {[%emt 0:00:09]} 39. Kg3 {[%emt 0:00:23]} Re3+ {[%emt 0:00:38]} 40. Kxg4 {[%emt 0:00:17]} Re4+ {[%emt 0:00:03]} 41. Kh3 {[%emt 0:00:22]} Re3+ {[%emt 0:00:05]} 42. Rg3 {[%emt 0:00:06]} Rxg3+ {[%emt 0:00:04]} 43. Kxg3 {[%emt 0:00:01]} Na6 {[%emt 0:00:05]} 44. Nxc6 {[%emt 0:01:57]} Nxc5 {[%emt 0:00:03]} 45. Rb5 {[%emt 0:00:19]} Ne4+ {[%emt 0:00:29]} 46. Kg4 {[%emt 0:00:13]} a4 {[%emt 0:00:32]} 47. Ne7+ {[%emt 0:00:42]} Kf7 {[%emt 0:00:11]} 48. Nf5 {[%emt 0:00:13]} g6 {[%emt 0:01:19]} 49. Rb7+ {[%emt 0:00:41]} Kf6 {[%emt 0:00:29]} 50. Ne3 {[%emt 0:00:26]} Ke5 {[%emt 0:02:44]} 51. Re7+ {[%emt 0:00:36]} Kd4 {[%emt 0:00:02]} 52. Nc2+ {[%emt 0:00:08]} Kd3 {[%emt 0:00:04]} 53. Ne1+ {[%emt 0:00:45]} Ke3 {[%emt 0:00:36]} 54. Nc2+ {[%emt 0:00:35]} Kd3 {[%emt 0:00:04]} 55. Ne1+ {[%emt 0:00:20]} Ke3 {[%emt 0:00:04]} 56. Nc2+ {[%emt 0:00:40]} 1/2-1/2

[Event "Chelyabinskiy variant-A 2021"]
[Site "Chelyabinsk"]
[Date "2021.03.28"]
[Round "6.9"]
[White "Khanin, Semen"]
[Black "Gutenev, Alexander"]
[Result "1-0"]
[ECO "D90"]
[WhiteElo "2506"]
[BlackElo "2451"]
[Annotator "ChessBase"]
[PlyCount "57"]
[EventDate "2021.03.23"]
[EventType "swiss"]
[EventCountry "RUS"]
[SourceTitle "playchess.com"]
[Source "ChessBase"]
[SourceQuality "1"]
[TimeControl "5400+30"]

1. d4 {[%emt 0:00:00]} Nf6 {[%emt 0:04:33]} 2. c4 {[%emt 0:00:00]} g6 {[%emt 0:00:59]} 3. Nc3 {[%emt 0:00:00]} d5 {[%emt 0:00:07]} 4. Nf3 {[%emt 0:00:04]} Bg7 {[%emt 0:00:07]} 5. g3 {[%emt 0:00:04]} O-O {[%emt 0:01:42]} 6. Bg2 {[%emt 0:00:03]} c6 {[%emt 0:02:37]} 7. O-O {[%emt 0:00:05]} dxc4 {[%emt 0:01:12]} 8. e4 {[%emt 0:00:08]} Bg4 {[%emt 0:03:16]} 9. h3 {[%emt 0:00:04]} Bxf3 {[%emt 0:00:18]} 10. Bxf3 {[%emt 0:00:03]} e5 {[%emt 0:02:32]} 11. dxe5 {[%emt 0:00:31]} Nfd7 {[%emt 0:01:31]} 12. e6 {[%emt 0:00:05]} fxe6 {[%emt 0:01:41]} 13. Be3 {[%emt 0:00:33]} b5 {[%emt 0:35:38]} 14. Bg2 {[%emt 0:04:22]} Nb6 {[%emt 0:09:52]} 15. Qe2 {[%emt 0:13:48]} Na6 {[%emt 0:02:04]} 16. a4 {[%emt 0:09:17]} b4 {[%emt 0:05:47]} 17. a5 {[%emt 0:01:36]} bxc3 {[%emt 0:03:45]} 18. axb6 {[%emt 0:00:05]} axb6 {[%emt 0:00:29]} 19. Qxc4 {[%emt 0:01:47]} Nc5 {[%emt 0:06:08]} 20. Rxa8 {[%emt 0:01:58]} Qxa8 {[%emt 0:00:26]} 21. Bxc5 {[%emt 0:00:44]} bxc5 {[%emt 0:00:05]} 22. bxc3 {[%emt 0:00:26]} Qa3 {[%emt 0:01:00]} 23. e5 {[%emt 0:00:23]} Kh8 {[%emt 0:01:12]} 24. f4 {[%emt 0:02:35]} g5 {[%emt 0:00:46]} 25. Kh1 {[%emt 0:09:11]} gxf4 {[%emt 0:00:26]} 26. gxf4 {[%emt 0:01:44]} Bh6 {[%emt 0:02:54]} 27. Qxe6 {[%emt 0:01:00]} Bxf4 {[%emt 0:00:14]} 28. Qe7 {[%emt 0:00:36]} Qa8 {[%emt 0:01:27]} 29. Be4 {[%emt 0:00:06]} 1-0

[Event "Chelyabinskiy variant-A 2021"]
[Site "Chelyabinsk"]
[Date "2021.03.28"]
[Round "6.10"]
[White "Skatchkov, Valery"]
[Black "Demchenko, Anton"]
[Result "0-1"]
[ECO "E71"]
[WhiteElo "2283"]
[BlackElo "2610"]
[Annotator "ChessBase"]
[PlyCount "148"]
[EventDate "2021.03.23"]
[EventType "swiss"]
[EventCountry "RUS"]
[SourceTitle "playchess.com"]
[Source "ChessBase"]
[SourceQuality "1"]
[TimeControl "5400+30"]

1. d4 {[%emt 0:00:00]} Nf6 {[%emt 0:00:00]} 2. c4 {[%emt 0:00:00]} g6 {[%emt 0:00:45]} 3. Nc3 {[%emt 0:00:00]} Bg7 {[%emt 0:00:07]} 4. e4 {[%emt 0:00:00]} d6 {[%emt 0:00:07]} 5. h3 {[%emt 0:00:00]} e5 {[%emt 0:01:52]} 6. d5 {[%emt 0:13:18]} Na6 {[%emt 0:01:10]} 7. b4 {[%emt 0:07:03]} O-O {[%emt 0:01:12]} 8. a3 {[%emt 0:00:02]} c6 {[%emt 0:11:26]} 9. Be3 {[%emt 0:01:14]} Nc7 {[%emt 0:15:17]} 10. g4 {[%emt 0:02:29]} Nfe8 {[%emt 0:01:34]} 11. Qd2 {[%emt 0:01:10]} cxd5 {[%emt 0:01:38]} 12. cxd5 {[%emt 0:00:28]} f5 {[%emt 0:00:04]} 13. gxf5 {[%emt 0:04:42]} gxf5 {[%emt 0:00:16]} 14. exf5 {[%emt 0:00:05]} Bxf5 {[%emt 0:01:50]} 15. Nge2 {[%emt 0:11:51]} Nf6 {[%emt 0:00:59]} 16. Ng3 {[%emt 0:00:51]} Qd7 {[%emt 0:00:04]} 17. Nxf5 {[%emt 0:16:05]} Qxf5 {[%emt 0:00:03]} 18. Rg1 {[%emt 0:01:14]} Kh8 {[%emt 0:01:51]} 19. h4 {[%emt 0:03:51]} a6 {[%emt 0:17:33]} 20. Rc1 {[%emt 0:19:27]} Rae8 {[%emt 0:02:40]} 21. Be2 {[%emt 0:01:05]} Qh3 {[%emt 0:07:24]} 22. h5 {[%emt 0:07:27]} Rg8 {[%emt 0:14:36]} 23. Kd1 {[%emt 0:01:53]} Qf5 {[%emt 0:03:11]} 24. Rg5 {[%emt 0:00:16]} Qd7 {[%emt 0:00:45]} 25. Kc2 {[%emt 0:00:17]} Rgf8 {[%emt 0:02:21]} 26. Rg2 {[%emt 0:02:57]} Nxh5 {[%emt 0:03:20]} 27. Rcg1 {[%emt 0:01:49]} Re7 {[%emt 0:01:34]} 28. Bg4 {[%emt 0:02:55]} Qe8 {[%emt 0:00:18]} 29. Kb3 {[%emt 0:00:07]} Nf4 {[%emt 0:01:09]} 30. Rh2 {[%emt 0:00:17]} Qf7 {[%emt 0:01:19]} 31. Bf3 {[%emt 0:00:04]} Ne8 {[%emt 0:04:25]} 32. Ne4 {[%emt 0:00:48]} Qxd5+ {[%emt 0:01:10]} 33. Qxd5 {[%emt 0:00:04]} Nxd5 {[%emt 0:00:02]} 34. Ng5 {[%emt 0:00:22]} Nxe3 {[%emt 0:03:14]} 35. Nxh7 {[%emt 0:00:21]} Nf1 {[%emt 0:00:01]} 36. Nxf8+ {[%emt 0:00:39]} Nxh2 {[%emt 0:00:02]} 37. Ng6+ {[%emt 0:00:12]} Kh7 {[%emt 0:00:01]} 38. Be4 {[%emt 0:01:42]} Rc7 {[%emt 0:00:13]} 39. Rh1 {[%emt 0:01:33]} Nf6 {[%emt 0:00:33]} 40. Rxh2+ {[%emt 0:00:17]} Kg8 {[%emt 0:00:06]} 41. Bf5 {[%emt 0:00:05]} Kf7 {[%emt 0:00:25]} 42. Nh4 {[%emt 0:00:32]} e4 {[%emt 0:00:38]} 43. Bg6+ {[%emt 0:00:50]} Ke6 {[%emt 0:00:02]} 44. Rg2 {[%emt 0:00:58]} d5 {[%emt 0:01:40]} 45. Nf5 {[%emt 0:00:29]} Ke5 {[%emt 0:00:31]} 46. Nxg7 {[%emt 0:00:13]} Rxg7 {[%emt 0:00:05]} 47. Bxe4 Rc7 {[%emt 0:01:30]} 48. Bc2 {[%emt 0:00:28]} Kf4 {[%emt 0:01:10]} 49. Rg3 {[%emt 0:01:13]} Ne4 {[%emt 0:01:23]} 50. Rd3 {[%emt 0:00:03]} Rd7 {[%emt 0:00:19]} 51. Bd1 {[%emt 0:01:06]} Ke5 {[%emt 0:00:01]} 52. f3 {[%emt 0:00:13]} Ng5 {[%emt 0:00:27]} 53. Kc3 {[%emt 0:00:13]} d4+ {[%emt 0:00:45]} 54. Kd2 {[%emt 0:00:11]} Ne6 {[%emt 0:00:07]} 55. Rb3 {[%emt 0:00:12]} Rh7 {[%emt 0:00:20]} 56. Bc2 {[%emt 0:00:33]} Rh2+ {[%emt 0:00:10]} 57. Kd1 {[%emt 0:00:08]} Rh1+ {[%emt 0:01:40]} 58. Kd2 {[%emt 0:00:05]} Rh2+ {[%emt 0:00:03]} 59. Kd1 {[%emt 0:00:03]} Nc7 {[%emt 0:00:38]} 60. Be4 {[%emt 0:01:13]} Nd5 {[%emt 0:00:05]} 61. Kc1 {[%emt 0:01:12]} b6 {[%emt 0:00:51]} 62. Bd3 {[%emt 0:01:20]} b5 {[%emt 0:00:20]} 63. Rb2 {[%emt 0:00:24]} Rh1+ {[%emt 0:00:08]} 64. Kc2 {[%emt 0:00:03]} Ne3+ {[%emt 0:01:01]} 65. Kb3 {[%emt 0:00:13]} Rc1 {[%emt 0:00:06]} 66. Rd2 {[%emt 0:00:31]} Rc3+ {[%emt 0:00:55]} 67. Kb2 {[%emt 0:00:06]} Nc4+ {[%emt 0:00:17]} 68. Bxc4 {[%emt 0:00:03]} bxc4 {[%emt 0:00:04]} 69. f4+ {[%emt 0:00:46]} Ke4 {[%emt 0:00:19]} 70. f5 {[%emt 0:00:11]} Rf3 {[%emt 0:00:45]} 71. Re2+ {[%emt 0:00:24]} Kd5 {[%emt 0:00:24]} 72. Re6 {[%emt 0:00:15]} Rxf5 {[%emt 0:00:10]} 73. Rxa6 {[%emt 0:00:02]} Rf2+ {[%emt 0:00:05]} 74. Kc1 {[%emt 0:00:02]} c3 {[%emt 0:00:20]} 0-1

[Event "Chelyabinskiy variant-A 2021"]
[Site "Chelyabinsk"]
[Date "2021.03.28"]
[Round "6.11"]
[White "Petrov, Nikita"]
[Black "Simantsev, Mikhail"]
[Result "1-0"]
[ECO "E17"]
[WhiteElo "2571"]
[BlackElo "2389"]
[Annotator "ChessBase"]
[PlyCount "83"]
[EventDate "2021.03.23"]
[EventType "swiss"]
[EventCountry "RUS"]
[SourceTitle "playchess.com"]
[Source "ChessBase"]
[SourceQuality "1"]
[TimeControl "5400+30"]

1. d4 {[%emt 0:00:00]} Nf6 {[%emt 0:03:32]} 2. c4 {[%emt 0:00:00]} e6 {[%emt 0:00:50]} 3. Nf3 {[%emt 0:00:16]} b6 {[%emt 0:00:23]} 4. g3 {[%emt 0:00:57]} Bb7 {[%emt 0:03:53]} 5. Bg2 {[%emt 0:00:19]} Be7 {[%emt 0:00:02]} 6. Nc3 {[%emt 0:00:32]} Ne4 {[%emt 0:02:30]} 7. Bd2 {[%emt 0:00:10]} O-O {[%emt 0:10:15]} 8. O-O {[%emt 0:05:00]} f5 {[%emt 0:11:08]} 9. Ne5 {[%emt 0:03:00]} Nxc3 {[%emt 0:16:13]} 10. Bxc3 {[%emt 0:00:07]} Bxg2 {[%emt 0:00:04]} 11. Kxg2 {[%emt 0:00:06]} Bf6 {[%emt 0:08:45]} 12. Qd3 {[%emt 0:06:13]} Nc6 {[%emt 0:08:39]} 13. Nxc6 {[%emt 0:07:46]} dxc6 {[%emt 0:00:20]} 14. Rad1 {[%emt 0:01:38]} Qd7 {[%emt 0:00:43]} 15. e4 {[%emt 0:07:45]} Rad8 {[%emt 0:00:26]} 16. Qe2 {[%emt 0:03:04]} Rfe8 {[%emt 0:02:31]} 17. Rfe1 {[%emt 0:05:37]} g6 {[%emt 0:06:59]} 18. h4 {[%emt 0:03:43]} h5 {[%emt 0:06:11]} 19. Qf3 {[%emt 0:03:47]} Bg7 {[%emt 0:03:26]} 20. e5 {[%emt 0:09:56]} b5 {[%emt 0:05:17]} 21. b3 {[%emt 0:02:09]} bxc4 {[%emt 0:02:17]} 22. bxc4 {[%emt 0:00:05]} Bh6 {[%emt 0:04:29]} 23. Bb4 {[%emt 0:03:18]} Bf8 {[%emt 0:00:49]} 24. Bd2 {[%emt 0:03:40]} Rb8 {[%emt 0:00:36]} 25. Bc3 {[%emt 0:10:42]} Bb4 {[%emt 0:01:39]} 26. Re3 {[%emt 0:05:20]} Bxc3 {[%emt 0:00:22]} 27. Rxc3 {[%emt 0:00:05]} Red8 {[%emt 0:00:25]} 28. Ra3 {[%emt 0:01:18]} Rb4 {[%emt 0:00:15]} 29. Qc3 {[%emt 0:01:03]} Rb7 {[%emt 0:00:01]} 30. Ra5 {[%emt 0:00:41]} Rf8 {[%emt 0:01:19]} 31. Qf3 {[%emt 0:00:48]} Rb4 {[%emt 0:00:32]} 32. Rc5 {[%emt 0:00:20]} Rb6 {[%emt 0:00:02]} 33. a4 {[%emt 0:00:45]} Ra6 {[%emt 0:00:34]} 34. a5 {[%emt 0:00:17]} Kg7 {[%emt 0:00:43]} 35. d5 {[%emt 0:01:50]} cxd5 {[%emt 0:00:35]} 36. cxd5 {[%emt 0:00:05]} Rf7 {[%emt 0:00:40]} 37. Qc3 {[%emt 0:02:00]} Kh7 {[%emt 0:00:31]} 38. Qc4 {[%emt 0:00:49]} Qc8 {[%emt 0:00:29]} 39. d6 {[%emt 0:01:32]} Qb7+ {[%emt 0:00:08]} 40. Kg1 {[%emt 0:00:35]} cxd6 {[%emt 0:00:01]} 41. exd6 {[%emt 0:00:16]} f4 {[%emt 0:01:22]} 42. Rc7 1-0

[Event "Chelyabinskiy variant-A 2021"]
[Site "Chelyabinsk"]
[Date "2021.03.28"]
[Round "6.13"]
[White "Kotsur, Pavel"]
[Black "Garifullina, Leya"]
[Result "0-1"]
[ECO "D39"]
[WhiteElo "2517"]
[BlackElo "2375"]
[Annotator "ChessBase"]
[PlyCount "79"]
[EventDate "2021.03.23"]
[EventType "swiss"]
[EventCountry "RUS"]
[SourceTitle "playchess.com"]
[Source "ChessBase"]
[SourceQuality "1"]
[TimeControl "5400+30"]

1. Nf3 {[%emt 0:00:00]} Nf6 {[%emt 0:00:00]} 2. c4 {[%emt 0:01:14]} e6 {[%emt 0:00:05]} 3. d4 {[%emt 0:03:52]} d5 {[%emt 0:01:34]} 4. Bg5 {[%emt 0:13:15]} dxc4 {[%emt 0:06:19]} 5. Nc3 {[%emt 0:05:34]} Bb4 {[%emt 0:04:26]} 6. Qa4+ {[%emt 0:12:54]} Nc6 {[%emt 0:00:09]} 7. e3 {[%emt 0:00:02]} Bd7 {[%emt 0:01:05]} 8. Qc2 {[%emt 0:00:04]} b5 {[%emt 0:00:50]} 9. Be2 {[%emt 0:03:02]} Rb8 {[%emt 0:04:46]} 10. O-O {[%emt 0:06:00]} Be7 {[%emt 0:05:33]} 11. Rad1 {[%emt 0:10:01]} h6 {[%emt 0:04:27]} 12. Bxf6 {[%emt 0:00:57]} Bxf6 {[%emt 0:00:09]} 13. Ne4 {[%emt 0:00:10]} Be7 {[%emt 0:03:06]} 14. a3 {[%emt 0:07:41]} Qc8 {[%emt 0:05:29]} 15. Nfd2 {[%emt 0:04:19]} O-O {[%emt 0:06:14]} 16. f4 {[%emt 0:00:12]} f5 {[%emt 0:05:59]} 17. Nc3 {[%emt 0:08:21]} Bd6 {[%emt 0:07:16]} 18. g3 {[%emt 0:03:23]} Be8 {[%emt 0:07:43]} 19. Bf3 {[%emt 0:03:19]} a5 {[%emt 0:06:15]} 20. Rfe1 {[%emt 0:06:31]} Qa6 {[%emt 0:04:02]} 21. d5 {[%emt 0:01:44]} exd5 {[%emt 0:03:15]} 22. Nxd5 {[%emt 0:00:04]} Kh8 {[%emt 0:03:37]} 23. Kg2 {[%emt 0:00:34]} Bd7 {[%emt 0:01:46]} 24. Nf1 {[%emt 0:02:21]} Be6 {[%emt 0:02:43]} 25. e4 {[%emt 0:00:43]} Qa7 {[%emt 0:01:37]} 26. exf5 {[%emt 0:02:07]} Bxf5 {[%emt 0:00:13]} 27. Be4 {[%emt 0:00:27]} Bg4 {[%emt 0:00:49]} 28. Rd2 {[%emt 0:00:03]} Nd4 {[%emt 0:00:30]} 29. Qc3 {[%emt 0:00:07]} Nb3 {[%emt 0:00:35]} 30. Rf2 {[%emt 0:02:07]} Rbe8 {[%emt 0:02:05]} 31. f5 {[%emt 0:02:13]} Qd4 {[%emt 0:02:38]} 32. Qxd4 {[%emt 0:01:02]} Nxd4 {[%emt 0:00:03]} 33. f6 {[%emt 0:00:41]} Bf5 {[%emt 0:01:31]} 34. fxg7+ {[%emt 0:00:19]} Kxg7 {[%emt 0:00:04]} 35. Nd2 {[%emt 0:00:03]} Nb3 {[%emt 0:01:05]} 36. Ree2 {[%emt 0:01:53]} Nxd2 {[%emt 0:00:31]} 37. Bxf5 {[%emt 0:00:03]} Rxe2 {[%emt 0:00:05]} 38. Rxe2 {[%emt 0:00:05]} Nb3 {[%emt 0:01:32]} 39. Bd7 {[%emt 0:01:24]} Rd8 {[%emt 0:01:29]} 40. Bg4 {[%emt 0:01:09]} 0-1

[Event "Chelyabinskiy variant-A 2021"]
[Site "Chelyabinsk"]
[Date "2021.03.28"]
[Round "7.3"]
[White "Lysyj, Igor"]
[Black "Shuvalova, Polina"]
[Result "1/2-1/2"]
[ECO "E06"]
[WhiteElo "2605"]
[BlackElo "2476"]
[Annotator "ChessBase"]
[PlyCount "127"]
[EventDate "2021.03.23"]
[EventType "swiss"]
[EventCountry "RUS"]
[SourceTitle "playchess.com"]
[Source "ChessBase"]
[SourceQuality "1"]
[TimeControl "5400+30"]

1. d4 {[%emt 0:05:26]} Nf6 {[%emt 0:00:00]} 2. c4 {[%emt 0:00:04]} e6 {[%emt 0:00:00]} 3. Nf3 {[%emt 0:00:04]} d5 {[%emt 0:00:00]} 4. g3 {[%emt 0:00:04]} Be7 {[%emt 0:00:51]} 5. Bg2 {[%emt 0:00:21]} O-O {[%emt 0:00:06]} 6. Qd3 {[%emt 0:00:03]} c5 {[%emt 0:06:24]} 7. O-O {[%emt 0:00:13]} Nc6 {[%emt 0:03:03]} 8. cxd5 {[%emt 0:01:00]} Nxd5 {[%emt 0:03:52]} 9. dxc5 {[%emt 0:05:44]} Bxc5 {[%emt 0:00:26]} 10. a3 {[%emt 0:07:19]} Be7 {[%emt 0:02:24]} 11. Rd1 {[%emt 0:02:59]} Qc7 {[%emt 0:08:16]} 12. e4 {[%emt 0:07:53]} Nb6 {[%emt 0:02:12]} 13. Qc2 {[%emt 0:02:03]} Rd8 {[%emt 0:04:54]} 14. Rxd8+ {[%emt 0:00:47]} Qxd8 {[%emt 0:00:22]} 15. Bf4 {[%emt 0:01:40]} Bd7 {[%emt 0:07:00]} 16. Nc3 {[%emt 0:00:39]} Rc8 {[%emt 0:00:38]} 17. Rd1 {[%emt 0:05:16]} Qf8 {[%emt 0:02:59]} 18. Qe2 {[%emt 0:05:40]} h6 {[%emt 0:03:47]} 19. Nb5 {[%emt 0:04:40]} e5 {[%emt 0:01:55]} 20. Be3 {[%emt 0:08:50]} Bc5 {[%emt 0:02:08]} 21. Bxc5 {[%emt 0:07:40]} Qxc5 {[%emt 0:00:06]} 22. b4 {[%emt 0:01:30]} Qe7 {[%emt 0:01:25]} 23. Nd6 {[%emt 0:01:05]} Rc7 {[%emt 0:01:55]} 24. Nb5 {[%emt 0:02:58]} Rc8 {[%emt 0:00:05]} 25. Nd6 {[%emt 0:00:04]} Rc7 {[%emt 0:01:13]} 26. Nf5 {[%emt 0:00:07]} Qe8 {[%emt 0:04:43]} 27. Qc2 {[%emt 0:05:43]} Bxf5 {[%emt 0:10:35]} 28. exf5 {[%emt 0:00:05]} Re7 {[%emt 0:05:20]} 29. Qe4 {[%emt 0:04:32]} Nd7 {[%emt 0:04:28]} 30. b5 {[%emt 0:00:54]} Nf6 {[%emt 0:00:32]} 31. Qa4 {[%emt 0:02:57]} Nd4 {[%emt 0:00:35]} 32. Nxd4 {[%emt 0:00:36]} exd4 {[%emt 0:00:03]} 33. Bf1 {[%emt 0:01:03]} b6 {[%emt 0:05:03]} 34. Qxd4 {[%emt 0:01:21]} Rd7 {[%emt 0:00:46]} 35. Qa1 {[%emt 0:00:06]} Qe4 {[%emt 0:00:50]} 36. Qc1 {[%emt 0:04:28]} Kh7 {[%emt 0:05:05]} 37. Rxd7 {[%emt 0:02:35]} Nxd7 {[%emt 0:00:02]} 38. Qc4 {[%emt 0:00:32]} Qxc4 {[%emt 0:04:52]} 39. Bxc4 {[%emt 0:00:02]} Kg8 {[%emt 0:00:29]} 40. f4 {[%emt 0:00:21]} Kf8 {[%emt 0:00:17]} 41. Kf2 {[%emt 0:00:16]} Ke7 {[%emt 0:01:33]} 42. Kf3 {[%emt 0:02:36]} Nc5 {[%emt 0:02:23]} 43. g4 {[%emt 0:00:59]} Kf6 {[%emt 0:04:03]} 44. Ke3 {[%emt 0:01:55]} Ke7 {[%emt 0:01:39]} 45. Kf3 {[%emt 0:00:13]} Kf6 {[%emt 0:00:21]} 46. h4 {[%emt 0:02:42]} Nb7 {[%emt 0:00:07]} 47. Bd3 {[%emt 0:01:29]} Nd6 {[%emt 0:01:25]} 48. g5+ {[%emt 0:02:17]} hxg5 {[%emt 0:01:35]} 49. fxg5+ {[%emt 0:00:05]} Ke7 {[%emt 0:01:09]} 50. Ke3 {[%emt 0:02:03]} f6 {[%emt 0:00:12]} 51. Kd4 {[%emt 0:00:43]} Nf7 {[%emt 0:00:25]} 52. gxf6+ {[%emt 0:00:25]} gxf6 {[%emt 0:00:50]} 53. Kd5 {[%emt 0:00:23]} Kd7 {[%emt 0:00:15]} 54. Be2 {[%emt 0:00:07]} Nh6 {[%emt 0:00:32]} 55. Bh5 {[%emt 0:00:12]} Ng8 {[%emt 0:00:04]} 56. Bf7 {[%emt 0:01:21]} Nh6 {[%emt 0:00:03]} 57. Be6+ {[%emt 0:00:10]} Kc7 {[%emt 0:00:02]} 58. a4 {[%emt 0:01:06]} Ng4 {[%emt 0:00:09]} 59. Bf7 {[%emt 0:00:17]} Kd7 {[%emt 0:00:16]} 60. Be6+ {[%emt 0:00:08]} Kc7 {[%emt 0:00:01]} 61. h5 {[%emt 0:00:34]} Ne3+ {[%emt 0:00:29]} 62. Kd4 {[%emt 0:00:32]} Ng4 {[%emt 0:00:04]} 63. Bc4 {[%emt 0:00:36]} Kd6 {[%emt 0:00:07]} 64. Be2 {[%emt 0:00:04]} 1/2-1/2

[Event "Chelyabinskiy variant-A 2021"]
[Site "Chelyabinsk"]
[Date "2021.03.28"]
[Round "7.4"]
[White "Shomoev, Anton"]
[Black "Girya, Olga"]
[Result "1-0"]
[ECO "C80"]
[WhiteElo "2563"]
[BlackElo "2432"]
[Annotator "ChessBase"]
[PlyCount "101"]
[EventDate "2021.03.23"]
[EventType "swiss"]
[EventCountry "RUS"]
[SourceTitle "playchess.com"]
[Source "ChessBase"]
[SourceQuality "1"]
[TimeControl "5400+30"]

1. e4 {[%emt 0:00:00]} e5 {[%emt 0:05:46]} 2. Nf3 {[%emt 0:00:00]} Nc6 {[%emt 0:00:05]} 3. Bb5 {[%emt 0:00:00]} a6 {[%emt 0:00:09]} 4. Ba4 {[%emt 0:00:00]} Nf6 {[%emt 0:00:12]} 5. O-O {[%emt 0:00:00]} Nxe4 {[%emt 0:00:24]} 6. d4 {[%emt 0:00:03]} b5 {[%emt 0:00:14]} 7. Bb3 {[%emt 0:00:03]} d5 {[%emt 0:00:15]} 8. dxe5 {[%emt 0:00:06]} Be6 {[%emt 0:00:09]} 9. Nbd2 {[%emt 0:00:03]} Nc5 {[%emt 0:00:32]} 10. c3 {[%emt 0:00:07]} d4 {[%emt 0:00:26]} 11. Bxe6 {[%emt 0:00:24]} Nxe6 {[%emt 0:00:05]} 12. cxd4 {[%emt 0:00:06]} Ncxd4 {[%emt 0:00:19]} 13. a4 {[%emt 0:00:04]} Bb4 {[%emt 0:00:56]} 14. axb5 {[%emt 0:03:20]} Nxb5 {[%emt 0:02:12]} 15. Nc4 {[%emt 0:01:11]} Qxd1 {[%emt 0:11:49]} 16. Rxd1 {[%emt 0:00:33]} O-O {[%emt 0:01:23]} 17. Be3 {[%emt 0:00:21]} Rfb8 {[%emt 0:24:39]} 18. Na5 {[%emt 0:02:25]} Bxa5 {[%emt 0:00:46]} 19. Rxa5 {[%emt 0:00:04]} c5 {[%emt 0:04:29]} 20. Rda1 {[%emt 0:02:07]} Nbd4 {[%emt 0:09:40]} 21. Bxd4 {[%emt 0:03:36]} Nxd4 {[%emt 0:06:18]} 22. Nxd4 {[%emt 0:08:16]} cxd4 {[%emt 0:00:01]} 23. Rxa6 {[%emt 0:00:31]} Rxa6 {[%emt 0:00:12]} 24. Rxa6 {[%emt 0:00:05]} g5 {[%emt 0:05:26]} 25. h4 {[%emt 0:12:00]} gxh4 {[%emt 0:00:08]} 26. Rd6 {[%emt 0:00:17]} Rxb2 {[%emt 0:00:15]} 27. Rxd4 {[%emt 0:00:09]} Rb1+ {[%emt 0:00:17]} 28. Kh2 {[%emt 0:00:02]} Re1 {[%emt 0:00:33]} 29. Rg4+ {[%emt 0:00:06]} Kf8 {[%emt 0:07:25]} 30. f4 {[%emt 0:00:27]} f6 {[%emt 0:01:15]} 31. exf6 {[%emt 0:00:53]} Re6 {[%emt 0:00:03]} 32. Rxh4 {[%emt 0:00:11]} Rxf6 {[%emt 0:00:06]} 33. Kg3 {[%emt 0:00:20]} Kg7 {[%emt 0:00:53]} 34. Rh5 {[%emt 0:01:57]} Ra6 {[%emt 0:01:56]} 35. Kg4 {[%emt 0:00:22]} Ra1 {[%emt 0:09:42]} 36. Rb5 {[%emt 0:00:44]} Rg1 {[%emt 0:04:38]} 37. g3 {[%emt 0:00:15]} Kf7 {[%emt 0:02:32]} 38. Rb7+ {[%emt 0:02:47]} Kg8 {[%emt 0:00:43]} 39. Kh4 {[%emt 0:00:50]} Rg2 {[%emt 0:01:13]} 40. f5 {[%emt 0:08:05]} Rg1 {[%emt 0:01:07]} 41. g4 {[%emt 0:02:47]} Ra1 {[%emt 0:00:16]} 42. Kg5 {[%emt 0:00:08]} Ra6 {[%emt 0:00:33]} 43. Re7 {[%emt 0:00:25]} Rb6 {[%emt 0:00:21]} 44. Re6 {[%emt 0:00:53]} Rb4 {[%emt 0:00:23]} 45. Kf6 {[%emt 0:01:42]} h6 {[%emt 0:01:12]} 46. Re8+ {[%emt 0:01:16]} Kh7 {[%emt 0:00:00]} 47. Re7+ {[%emt 0:00:07]} Kh8 {[%emt 0:00:40]} 48. g5 {[%emt 0:00:16]} hxg5 {[%emt 0:00:29]} 49. Kg6 {[%emt 0:00:01]} Rb8 {[%emt 0:00:22]} 50. f6 {[%emt 0:01:53]} Rg8+ {[%emt 0:00:22]} 51. Kh6 {[%emt 0:01:08]} 1-0